[Event "Torneo Nuevo Centro. Jornada 10"]
[Site "Chess.com"]
[Date "2020.08.21"]
[Round "3"]
[White "Polikarpov, Anton"]
[Black "Valverde Alcaide, Miguel Alejandro"]
[Result "1-0"]
[WhiteElo "1224"]
[BlackElo "889"]
[TimeControl "180+2"]
[EndTime "10:59:58 PDT"]
[Termination "Victoria de AntonPolikarpov por jaque mate"]

1. e4 {[%clk 0:03:01.9]} 1... e5 {[%clk 0:02:42.9]} 2. Nf3 {[%clk 0:03:01.4]}
2... Nc6 {[%clk 0:02:42.3]} 3. Bc4 {[%clk 0:03:01.9]} 3... Qe7 {[%clk
0:02:39.9]} 4. O-O {[%clk 0:03:00.9]} 4... Nf6 {[%clk 0:02:40.1]} 5. Ng5 {[%clk
0:02:58]} 5... d5 {[%clk 0:02:32.5]} 6. Bb5 {[%clk 0:02:54.4]} 6... dxe4 {[%clk
0:02:28.3]} 7. Qe2 {[%clk 0:02:50]} 7... Nd5 {[%clk 0:02:10.2]} 8. Qxe4 {[%clk
0:02:44.1]} 8... Qxg5 {[%clk 0:02:02]} 9. Qxd5 {[%clk 0:02:34.2]} 9... Bd7
{[%clk 0:01:52.2]} 10. Bxc6 {[%clk 0:02:18.3]} 10... Bxc6 {[%clk 0:01:40.5]} 11.
h4 {[%clk 0:02:10]} 11... Qf5 {[%clk 0:01:05.8]} 12. Qd3 {[%clk 0:01:47.4]}
12... Qxd3 {[%clk 0:00:44.8]} 13. cxd3 {[%clk 0:01:47.4]} 13... Bc5 {[%clk
0:00:42.3]} 14. Re1 {[%clk 0:01:46.9]} 14... f6 {[%clk 0:00:39.5]} 15. Nc3
{[%clk 0:01:36.6]} 15... Rd8 {[%clk 0:00:34.7]} 16. b4 {[%clk 0:01:19.4]} 16...
Bxb4 {[%clk 0:00:26.9]} 17. Rb1 {[%clk 0:01:19.2]} 17... a5 {[%clk 0:00:25.1]}
18. a3 {[%clk 0:01:18.8]} 18... Bxc3 {[%clk 0:00:20.8]} 19. dxc3 {[%clk
0:01:17.3]} 19... Rxd3 {[%clk 0:00:22.1]} 20. Be3 {[%clk 0:01:13.3]} 20... O-O
{[%clk 0:00:21.5]} 21. Rbd1 {[%clk 0:01:11.9]} 21... Rxc3 {[%clk 0:00:21.4]} 22.
Rc1 {[%clk 0:01:06.7]} 22... Rxa3 {[%clk 0:00:20.9]} 23. Bc5 {[%clk 0:01:06.8]}
23... Rb3 {[%clk 0:00:20.4]} 24. Bxf8 {[%clk 0:01:03.5]} 24... Kxf8 {[%clk
0:00:19.2]} 25. Rb1 {[%clk 0:00:58.7]} 25... Ra3 {[%clk 0:00:14.9]} 26. Ra1
{[%clk 0:00:57.5]} 26... Rxa1 {[%clk 0:00:14.4]} 27. Rxa1 {[%clk 0:00:57.4]}
27... a4 {[%clk 0:00:15.8]} 28. Ra3 {[%clk 0:00:56.3]} 28... Kf7 {[%clk
0:00:16.8]} 29. g3 {[%clk 0:00:54.5]} 29... Kg6 {[%clk 0:00:17.4]} 30. Kf1
{[%clk 0:00:53.8]} 30... Kh5 {[%clk 0:00:18.1]} 31. Ke2 {[%clk 0:00:54.2]} 31...
Kg4 {[%clk 0:00:19.1]} 32. f3+ {[%clk 0:00:51.7]} 32... Kxg3 {[%clk 0:00:18.4]}
33. h5 {[%clk 0:00:50.8]} 33... Kh4 {[%clk 0:00:16.7]} 34. Ra1 {[%clk
0:00:47.4]} 34... b5 {[%clk 0:00:17.2]} 35. Ke3 {[%clk 0:00:46.4]} 35... Kg3
{[%clk 0:00:14.4]} 36. Rg1+ {[%clk 0:00:42.6]} 36... Kh4 {[%clk 0:00:14]} 37. f4
{[%clk 0:00:39]} 37... exf4+ {[%clk 0:00:13.4]} 38. Kxf4 {[%clk 0:00:39.2]}
38... Kxh5 {[%clk 0:00:14.4]} 39. Kf5 {[%clk 0:00:39.8]} 39... g6+ {[%clk
0:00:15.1]} 40. Kf4 {[%clk 0:00:38.1]} 40... g5+ {[%clk 0:00:14.8]} 41. Kf5
{[%clk 0:00:38.1]} 41... h6 {[%clk 0:00:13.6]} 42. Rg3 {[%clk 0:00:35.1]} 42...
b4 {[%clk 0:00:12.7]} 43. Rh3# {[%clk 0:00:34.9]} 1

[Event "Torneo Nuevo Centro. Jornada 10"]
[Site "Chess.com"]
[Date "2020.08.21"]
[Round "3"]
[White "Valero Martinez, Óscar"]
[Black "Mangues Rubia, Alex"]
[Result "0-1"]
[WhiteElo "1116"]
[BlackElo "1553"]
[TimeControl "180+2"]
[EndTime "11:00:01 PDT"]
[Termination "Victoria de Rexher73 por jaque mate"]

1. e4 {[%clk 0:02:47.7]} 1... c6 {[%clk 0:02:59.9]} 2. Nf3 {[%clk 0:02:46.7]}
2... g6 {[%clk 0:02:57.9]} 3. Nc3 {[%clk 0:02:42.2]} 3... Bg7 {[%clk 0:02:57.5]}
4. Bc4 {[%clk 0:02:39.2]} 4... Nf6 {[%clk 0:02:27.6]} 5. d3 {[%clk 0:02:36.1]}
5... b5 {[%clk 0:02:24.8]} 6. Bb3 {[%clk 0:02:30.8]} 6... d6 {[%clk 0:02:19.1]}
7. Ng5 {[%clk 0:02:19.9]} 7... O-O {[%clk 0:02:04.8]} 8. Bf4 {[%clk 0:02:11]}
8... a5 {[%clk 0:01:19.8]} 9. a3 {[%clk 0:01:59.1]} 9... h6 {[%clk 0:01:04.3]}
10. e5 {[%clk 0:01:57.6]} 10... Nh5 {[%clk 0:00:47.8]} 11. Nxf7 {[%clk
0:01:34.1]} 11... Rxf7 {[%clk 0:00:40.4]} 12. Bxf7+ {[%clk 0:01:35]} 12... Kxf7
{[%clk 0:00:42.3]} 13. exd6 {[%clk 0:01:32.4]} 13... Nxf4 {[%clk 0:00:25.7]} 14.
Qf3 {[%clk 0:01:23.6]} 14... Qxd6 {[%clk 0:00:21.6]} 15. Ne4 {[%clk 0:01:21.1]}
15... Qe5 {[%clk 0:00:14.9]} 16. O-O {[%clk 0:01:15.8]} 16... h5 {[%clk
0:00:11.9]} 17. Rae1 {[%clk 0:01:12.6]} 17... Bg4 {[%clk 0:00:12.5]} 18. Qe3
{[%clk 0:00:57.9]} 18... Qc7 {[%clk 0:00:13.8]} 19. h3 {[%clk 0:00:47.4]} 19...
Bf5 {[%clk 0:00:13.6]} 20. Nc5 {[%clk 0:00:40.5]} 20... e6 {[%clk 0:00:10.8]}
21. Qxe6+ {[%clk 0:00:26.6]} 21... Bxe6 {[%clk 0:00:10.7]} 22. Nxe6 {[%clk
0:00:17.6]} 22... Nxe6 {[%clk 0:00:11.8]} 23. f4 {[%clk 0:00:12]} 23... Qb6+
{[%clk 0:00:11.9]} 24. Kh1 {[%clk 0:00:11.2]} 24... Nd4 {[%clk 0:00:09.4]} 25.
Re4 {[%clk 0:00:11.6]} 25... Nd7 {[%clk 0:00:09.6]} 26. f5 {[%clk 0:00:13]}
26... Nxf5 {[%clk 0:00:09.5]} 27. Ref4 {[%clk 0:00:13.5]} 27... Bh6 {[%clk
0:00:09]} 28. d4 {[%clk 0:00:14.8]} 28... Bxf4 {[%clk 0:00:09.8]} 29. Rxf4
{[%clk 0:00:16.1]} 29... Nf6 {[%clk 0:00:10.3]} 30. d5 {[%clk 0:00:15]} 30...
cxd5 {[%clk 0:00:11.1]} 31. c3 {[%clk 0:00:15.9]} 31... Re8 {[%clk 0:00:11.4]}
32. Kh2 {[%clk 0:00:15.9]} 32... Qc7 {[%clk 0:00:12.2]} 33. g3 {[%clk
0:00:15.3]} 33... Qxf4 {[%clk 0:00:14.1]} 34. gxf4 {[%clk 0:00:16.3]} 34... Re2+
{[%clk 0:00:16]} 35. Kg1 {[%clk 0:00:16.4]} 35... Rxb2 {[%clk 0:00:17.9]} 36.
Kf1 {[%clk 0:00:17.7]} 36... Ng3+ {[%clk 0:00:18.2]} 37. Ke1 {[%clk 0:00:19.6]}
37... Nfe4 {[%clk 0:00:18.3]} 38. Kd1 {[%clk 0:00:21.2]} 38... Nxc3+ {[%clk
0:00:15]} 39. Kc1 {[%clk 0:00:23]} 39... Rh2 {[%clk 0:00:16]} 40. a4 {[%clk
0:00:17.9]} 40... Nge4 {[%clk 0:00:16.8]} 41. h4 {[%clk 0:00:17.9]} 41... Nc5
{[%clk 0:00:18.1]} 42. f5 {[%clk 0:00:18.8]} 42... Nd3# {[%clk 0:00:19.7]} 0

[Event "Torneo Nuevo Centro. Jornada 10"]
[Site "Chess.com"]
[Date "2020.08.21"]
[Round "3"]
[White "Rodriguez Rodriguez, Joan David "]
[Black "Luque Saiz, Andrés"]
[Result "0-1"]
[WhiteElo "1722"]
[BlackElo "2045"]
[TimeControl "180+2"]
[EndTime "11:00:12 PDT"]
[Termination "Victoria de Chuch1n por abandono"]

1. d4 {[%clk 0:03:01.9]} 1... d5 {[%clk 0:03:00.4]} 2. c4 {[%clk 0:03:01.5]}
2... c6 {[%clk 0:03:01.3]} 3. cxd5 {[%clk 0:03:02.4]} 3... cxd5 {[%clk
0:03:03.2]} 4. Bf4 {[%clk 0:03:03.4]} 4... Nc6 {[%clk 0:03:03.5]} 5. Nc3 {[%clk
0:03:03.8]} 5... Nf6 {[%clk 0:03:04.2]} 6. e3 {[%clk 0:03:02.5]} 6... a6 {[%clk
0:03:05.1]} 7. Bd3 {[%clk 0:03:00.6]} 7... Bg4 {[%clk 0:03:05.5]} 8. f3 {[%clk
0:02:56.8]} 8... Bh5 {[%clk 0:03:06]} 9. a3 {[%clk 0:02:57.7]} 9... e6 {[%clk
0:03:06]} 10. Nge2 {[%clk 0:02:58.2]} 10... Bd6 {[%clk 0:03:06.3]} 11. O-O
{[%clk 0:02:57.7]} 11... O-O {[%clk 0:03:06.8]} 12. Bg3 {[%clk 0:02:39.6]} 12...
Bg6 {[%clk 0:03:02.8]} 13. Qc2 {[%clk 0:02:36.3]} 13... Rc8 {[%clk 0:02:59.2]}
14. Bxg6 {[%clk 0:02:35.4]} 14... hxg6 {[%clk 0:03:01.1]} 15. Qd3 {[%clk
0:02:35.7]} 15... Na5 {[%clk 0:02:54.8]} 16. Rab1 {[%clk 0:02:12.6]} 16... Nc4
{[%clk 0:02:43]} 17. e4 {[%clk 0:02:10.1]} 17... Bxg3 {[%clk 0:02:09]} 18. Nxg3
{[%clk 0:02:04.4]} 18... dxe4 {[%clk 0:02:05]} 19. fxe4 {[%clk 0:02:01.7]} 19...
e5 {[%clk 0:01:52.9]} 20. d5 {[%clk 0:01:58]} 20... Qb6+ {[%clk 0:01:53.1]} 21.
Kh1 {[%clk 0:01:54.8]} 21... Nxb2 {[%clk 0:01:47.1]} 22. Na4 {[%clk 0:01:25.2]}
22... Nxd3 {[%clk 0:01:39.6]} 23. Rxb6 {[%clk 0:01:25.6]} 23... Rc4 {[%clk
0:01:26.6]} 24. Rf3 {[%clk 0:01:10.5]} 24... Nxe4 {[%clk 0:01:08.2]} 25. Nb2
{[%clk 0:00:43.4]} 25... Nxg3+ {[%clk 0:00:47.8]} 26. hxg3 {[%clk 0:00:43.7]}
26... Nxb2 {[%clk 0:00:37.3]} 27. Rxb2 {[%clk 0:00:45.6]} 27... b5 {[%clk
0:00:35.5]} 28. Rd3 {[%clk 0:00:43.6]} 28... Rd8 {[%clk 0:00:36]} 29. Re2 {[%clk
0:00:38.2]} 29... f6 {[%clk 0:00:36.4]} 30. Kh2 {[%clk 0:00:38]} 30... Kf7
{[%clk 0:00:37.1]} 31. Kh3 {[%clk 0:00:38.9]} 31... Ke7 {[%clk 0:00:37.2]} 32.
g4 {[%clk 0:00:40.4]} 32... Kd6 {[%clk 0:00:37.3]} 33. Kg3 {[%clk 0:00:28.8]}
33... g5 {[%clk 0:00:38.1]} 34. Kf3 {[%clk 0:00:27.7]} 34... Rdc8 {[%clk
0:00:38.8]} 35. Kg3 {[%clk 0:00:18]} 35... R8c5 {[%clk 0:00:38.4]} 36. Red2
{[%clk 0:00:14.5]} 36... Rc3 {[%clk 0:00:39.1]} 37. Rxc3 {[%clk 0:00:14.6]}
37... Rxc3+ {[%clk 0:00:41]} 38. Kh2 {[%clk 0:00:15.9]} 38... Rxa3 {[%clk
0:00:42]} 39. Rc2 {[%clk 0:00:16.7]} 39... Kxd5 {[%clk 0:00:42.3]} 40. Rc7
{[%clk 0:00:17.7]} 40... b4 {[%clk 0:00:43.4]} 41. Rxg7 {[%clk 0:00:18]} 41...
b3 {[%clk 0:00:44.5]} 42. Rd7+ {[%clk 0:00:19.5]} 42... Ke6 {[%clk 0:00:45.4]}
43. Rb7 {[%clk 0:00:20.7]} 43... a5 {[%clk 0:00:46]} 44. Rb6+ {[%clk 0:00:21.4]}
44... Kf7 {[%clk 0:00:46.8]} 45. Rb5 {[%clk 0:00:23.3]} 45... a4 {[%clk
0:00:47]} 46. Rb4 {[%clk 0:00:24.4]} 46... Ra2 {[%clk 0:00:47.9]} 47. Kg3 {[%clk
0:00:23.6]} 47... b2 {[%clk 0:00:48.8]} 48. Kf3 {[%clk 0:00:18.5]} 48... Ra3+
{[%clk 0:00:49.6]} 49. Kf2 {[%clk 0:00:19]} 49... Rb3 {[%clk 0:00:50.7]} 50.
Rxa4 {[%clk 0:00:14.3]} 50... b1=Q {[%clk 0:00:50.7]} 51. Ra7+ {[%clk
0:00:16.2]} 51... Kg6 {[%clk 0:00:50.6]} 0

[Event "Torneo Nuevo Centro. Jornada 10"]
[Site "Chess.com"]
[Date "2020.08.21"]
[Round "3"]
[White "Conon, Catalin"]
[Black "Cebolla Ruiz, David"]
[Result "1-0"]
[WhiteElo "1917"]
[BlackElo "1559"]
[TimeControl "180+2"]
[EndTime "11:00:16 PDT"]
[Termination "Victoria de CatalinConon por jaque mate"]

1. e4 {[%clk 0:03:01.9]} 1... e5 {[%clk 0:02:55.2]} 2. Nf3 {[%clk 0:03:02.8]}
2... d6 {[%clk 0:02:55.8]} 3. Nc3 {[%clk 0:03:03.6]} 3... Be7 {[%clk 0:02:54.4]}
4. Bc4 {[%clk 0:03:05]} 4... Nf6 {[%clk 0:02:54.2]} 5. O-O {[%clk 0:03:06.2]}
5... O-O {[%clk 0:02:55]} 6. d3 {[%clk 0:03:07]} 6... Nbd7 {[%clk 0:02:54.4]} 7.
a3 {[%clk 0:03:07.9]} 7... a5 {[%clk 0:02:52.4]} 8. Be3 {[%clk 0:03:08.9]} 8...
b6 {[%clk 0:02:53.1]} 9. Qd2 {[%clk 0:03:09.7]} 9... Bb7 {[%clk 0:02:53.5]} 10.
h3 {[%clk 0:03:10.4]} 10... Nc5 {[%clk 0:02:36.3]} 11. Bxc5 {[%clk 0:02:52.5]}
11... bxc5 {[%clk 0:02:32.4]} 12. Rad1 {[%clk 0:02:54]} 12... c6 {[%clk
0:02:30.4]} 13. Ne2 {[%clk 0:02:53.6]} 13... Qb6 {[%clk 0:02:29.7]} 14. c3
{[%clk 0:02:54.3]} 14... d5 {[%clk 0:02:12.9]} 15. exd5 {[%clk 0:02:54.8]} 15...
cxd5 {[%clk 0:02:13.4]} 16. Ba2 {[%clk 0:02:56.7]} 16... e4 {[%clk 0:02:06.3]}
17. dxe4 {[%clk 0:02:58.6]} 17... Nxe4 {[%clk 0:02:04.3]} 18. Qc2 {[%clk
0:02:58.7]} 18... Rad8 {[%clk 0:01:44.8]} 19. Nf4 {[%clk 0:02:20.2]} 19... Nf6
{[%clk 0:01:32.1]} 20. Qb3 {[%clk 0:01:50.9]} 20... Qxb3 {[%clk 0:01:24.2]} 21.
Bxb3 {[%clk 0:01:52.8]} 21... Rfe8 {[%clk 0:01:02.9]} 22. Rfe1 {[%clk
0:01:52.5]} 22... Bd6 {[%clk 0:00:56.4]} 23. Nd3 {[%clk 0:01:52.9]} 23... Ne4
{[%clk 0:00:47]} 24. Bc2 {[%clk 0:01:52.6]} 24... Re7 {[%clk 0:00:31.5]} 25. Ba4
{[%clk 0:01:19.4]} 25... Nf6 {[%clk 0:00:17.4]} 26. Rxe7 {[%clk 0:01:19.3]}
26... Bxe7 {[%clk 0:00:18.3]} 27. Nde5 {[%clk 0:01:20.1]} 27... Bd6 {[%clk
0:00:17.5]} 28. Re1 {[%clk 0:01:19.8]} 28... Bxe5 {[%clk 0:00:15.7]} 29. Nxe5
{[%clk 0:01:21.7]} 29... d4 {[%clk 0:00:14.8]} 30. cxd4 {[%clk 0:01:22.1]} 30...
cxd4 {[%clk 0:00:15.7]} 31. Rd1 {[%clk 0:01:23.3]} 31... Be4 {[%clk 0:00:14.9]}
32. f3 {[%clk 0:00:51.6]} 32... Bf5 {[%clk 0:00:12.3]} 33. Nc6 {[%clk
0:00:52.6]} 33... Rd6 {[%clk 0:00:11.1]} 34. Ne7+ {[%clk 0:00:53.6]} 34... Kf8
{[%clk 0:00:11.3]} 35. Nxf5 {[%clk 0:00:54.9]} 35... Rd5 {[%clk 0:00:12.7]} 36.
Nxd4 {[%clk 0:00:55.9]} 36... Nd7 {[%clk 0:00:12.1]} 37. Bxd7 {[%clk 0:00:55.6]}
37... Rxd7 {[%clk 0:00:12.4]} 38. Ne6+ {[%clk 0:00:56.9]} 38... Ke7 {[%clk
0:00:13.3]} 39. Rxd7+ {[%clk 0:00:58.8]} 39... Kxd7 {[%clk 0:00:14]} 40. Nd4
{[%clk 0:01:00.4]} 40... Kd6 {[%clk 0:00:14.8]} 41. Kf2 {[%clk 0:01:02.2]} 41...
g6 {[%clk 0:00:15.4]} 42. Ke3 {[%clk 0:01:03.6]} 42... Kd5 {[%clk 0:00:16.6]}
43. Kd3 {[%clk 0:01:05]} 43... f5 {[%clk 0:00:16.8]} 44. Ne2 {[%clk 0:01:06.2]}
44... Ke5 {[%clk 0:00:17.5]} 45. b4 {[%clk 0:01:07.4]} 45... axb4 {[%clk
0:00:17]} 46. axb4 {[%clk 0:01:09.2]} 46... Kd5 {[%clk 0:00:18.5]} 47. Nc3+
{[%clk 0:01:10.1]} 47... Kc6 {[%clk 0:00:19.3]} 48. Kc4 {[%clk 0:01:10.2]} 48...
Kb6 {[%clk 0:00:20.5]} 49. b5 {[%clk 0:01:12.1]} 49... Kb7 {[%clk 0:00:21.5]}
50. Nd5 {[%clk 0:01:13.7]} 50... Kb8 {[%clk 0:00:22.2]} 51. Kc5 {[%clk
0:01:15.6]} 51... Kb7 {[%clk 0:00:22.9]} 52. b6 {[%clk 0:01:16.9]} 52... Kb8
{[%clk 0:00:23.8]} 53. Nf6 {[%clk 0:01:18.1]} 53... h6 {[%clk 0:00:24]} 54. Nh7
{[%clk 0:01:19.5]} 54... g5 {[%clk 0:00:24.9]} 55. Nf6 {[%clk 0:01:20.5]} 55...
g4 {[%clk 0:00:23.2]} 56. fxg4 {[%clk 0:01:19.6]} 56... fxg4 {[%clk 0:00:24.5]}
57. hxg4 {[%clk 0:01:21.4]} 57... Kb7 {[%clk 0:00:25.3]} 58. Kb5 {[%clk
0:01:22.3]} 58... Kb8 {[%clk 0:00:26]} 59. Kc6 {[%clk 0:01:23]} 59... h5 {[%clk
0:00:22.6]} 60. gxh5 {[%clk 0:01:22.5]} 60... Ka8 {[%clk 0:00:21.7]} 61. b7+
{[%clk 0:01:23.7]} 61... Kb8 {[%clk 0:00:22.7]} 62. Nd7+ {[%clk 0:01:25.2]}
62... Ka7 {[%clk 0:00:23.6]} 63. b8=Q+ {[%clk 0:01:26.7]} 63... Ka6 {[%clk
0:00:24.2]} 64. Qb6# {[%clk 0:01:28.3]} 1

[Event "Torneo Nuevo Centro. Jornada 10"]
[Site "Chess.com"]
[Date "2020.08.21"]
[Round "3"]
[White "Rausell Taberner, Diego"]
[Black "Perrot, Fabien "]
[Result "1-0"]
[WhiteElo "676"]
[BlackElo "1110"]
[TimeControl "180+2"]
[EndTime "11:00:23 PDT"]
[Termination "Victoria de DieguinRau por tiempo"]

1. e4 {[%clk 0:02:54]} 1... e5 {[%clk 0:02:50.7]} 2. Nf3 {[%clk 0:02:19.4]} 2...
Nc6 {[%clk 0:02:49.8]} 3. Bc4 {[%clk 0:01:59.1]} 3... Bc5 {[%clk 0:02:47.4]} 4.
O-O {[%clk 0:01:57.8]} 4... Nf6 {[%clk 0:02:45]} 5. Nc3 {[%clk 0:01:57.6]} 5...
O-O {[%clk 0:02:43.3]} 6. d3 {[%clk 0:01:56.9]} 6... d6 {[%clk 0:02:44.1]} 7.
Bg5 {[%clk 0:01:57.1]} 7... Bg4 {[%clk 0:02:44.6]} 8. h3 {[%clk 0:01:56.2]} 8...
Bh5 {[%clk 0:02:42.5]} 9. Qe1 {[%clk 0:01:33.9]} 9... Bxf3 {[%clk 0:02:33.4]}
10. gxf3 {[%clk 0:01:34.3]} 10... Nd4 {[%clk 0:02:34.7]} 11. Kg2 {[%clk
0:01:18.4]} 11... Nxc2 {[%clk 0:02:33.9]} 12. Qd2 {[%clk 0:01:10.2]} 12... Nxa1
{[%clk 0:02:24]} 13. Rxa1 {[%clk 0:01:09.5]} 13... h6 {[%clk 0:02:21.2]} 14. Rh1
{[%clk 0:01:05.4]} 14... hxg5 {[%clk 0:01:52.3]} 15. Qxg5 {[%clk 0:01:04]} 15...
Nh7 {[%clk 0:01:52]} 16. Qg4 {[%clk 0:01:02]} 16... Nf6 {[%clk 0:01:51.8]} 17.
Qf5 {[%clk 0:00:58.9]} 17... g6 {[%clk 0:01:41.3]} 18. Qg5 {[%clk 0:00:51.7]}
18... Nh7 {[%clk 0:01:41.1]} 19. Qh6 {[%clk 0:00:46.3]} 19... Qg5+ {[%clk
0:01:38.4]} 20. Qxg5 {[%clk 0:00:43.1]} 20... Nxg5 {[%clk 0:01:39.3]} 21. Nd5
{[%clk 0:00:41.8]} 21... Bb6 {[%clk 0:01:29.9]} 22. Nf6+ {[%clk 0:00:38.5]}
22... Kg7 {[%clk 0:01:20.6]} 23. Nd7 {[%clk 0:00:34.1]} 23... Rfd8 {[%clk
0:01:11.9]} 24. Nxb6 {[%clk 0:00:19.8]} 24... axb6 {[%clk 0:01:12.4]} 25. Kg3
{[%clk 0:00:21.1]} 25... c6 {[%clk 0:01:08]} 26. Kg4 {[%clk 0:00:23]} 26... Ne6
{[%clk 0:01:05.3]} 27. Kh4 {[%clk 0:00:24.9]} 27... d5 {[%clk 0:01:05.4]} 28.
exd5 {[%clk 0:00:24.4]} 28... cxd5 {[%clk 0:01:06.3]} 29. Bb5 {[%clk 0:00:24.1]}
29... Nd4 {[%clk 0:00:58.2]} 30. Rg1 {[%clk 0:00:18.4]} 30... Nxf3+ {[%clk
0:00:57.8]} 31. Kg4 {[%clk 0:00:16.9]} 31... Nxg1 {[%clk 0:00:58.6]} 32. Ba4
{[%clk 0:00:14.3]} 32... Ne2 {[%clk 0:00:58.1]} 33. b3 {[%clk 0:00:15.3]} 33...
Nd4 {[%clk 0:00:57.8]} 34. b4 {[%clk 0:00:14.7]} 34... Rxa4 {[%clk 0:00:46.9]}
35. Kh4 {[%clk 0:00:05.3]} 35... Rxb4 {[%clk 0:00:46.6]} 36. a3 {[%clk
0:00:04.7]} 36... Rb3 {[%clk 0:00:42.4]} 37. Kg5 {[%clk 0:00:06.1]} 37... Rxd3
{[%clk 0:00:41.3]} 38. Kg4 {[%clk 0:00:08]} 1

[Event "Torneo Nuevo Centro. Jornada 10"]
[Site "Chess.com"]
[Date "2020.08.21"]
[Round "3"]
[White "Tormos Beltran, Maite"]
[Black "Gómez Alonso, Óscar"]
[Result "1/2-1/2"]
[WhiteElo "1440"]
[BlackElo "1842"]
[TimeControl "180+2"]
[EndTime "11:01:15 PDT"]
[Termination "Tablas por repeticiÃ³n"]

1. d4 {[%clk 0:03:01.9]} 1... Nf6 {[%clk 0:03:00.6]} 2. c4 {[%clk 0:02:44.1]}
2... e6 {[%clk 0:03:00.7]} 3. Nc3 {[%clk 0:02:20.4]} 3... d5 {[%clk 0:03:01.4]}
4. Nf3 {[%clk 0:02:20]} 4... Be7 {[%clk 0:03:01.2]} 5. Ne5 {[%clk 0:02:07.1]}
5... O-O {[%clk 0:03:00.9]} 6. cxd5 {[%clk 0:02:07.5]} 6... exd5 {[%clk
0:03:01.6]} 7. e3 {[%clk 0:02:07.3]} 7... c6 {[%clk 0:03:02.5]} 8. Bd3 {[%clk
0:02:08.1]} 8... Nbd7 {[%clk 0:03:03.2]} 9. Nxd7 {[%clk 0:02:06.8]} 9... Bxd7
{[%clk 0:03:03.7]} 10. O-O {[%clk 0:02:08.2]} 10... Bd6 {[%clk 0:02:59.9]} 11.
a3 {[%clk 0:02:08.9]} 11... Re8 {[%clk 0:03:00.5]} 12. b4 {[%clk 0:02:09.4]}
12... Qc7 {[%clk 0:03:01.3]} 13. Rb1 {[%clk 0:02:06.9]} 13... Bxh2+ {[%clk
0:03:00.9]} 14. Kh1 {[%clk 0:02:07.8]} 14... Bd6 {[%clk 0:02:59.9]} 15. b5
{[%clk 0:02:02.2]} 15... c5 {[%clk 0:03:00.5]} 16. dxc5 {[%clk 0:02:01.5]} 16...
Bxc5 {[%clk 0:02:59.8]} 17. Bb2 {[%clk 0:01:58.2]} 17... b6 {[%clk 0:02:53.4]}
18. Qf3 {[%clk 0:01:55.7]} 18... Qd6 {[%clk 0:02:50.4]} 19. a4 {[%clk
0:01:43.8]} 19... Bg4 {[%clk 0:02:50.5]} 20. Qf4 {[%clk 0:01:29.5]} 20... Qe6
{[%clk 0:02:33.5]} 21. Ne2 {[%clk 0:01:17.3]} 21... Ne4 {[%clk 0:02:24]} 22. Nd4
{[%clk 0:01:05]} 22... Bxd4 {[%clk 0:02:12.1]} 23. Bxd4 {[%clk 0:01:02.7]} 23...
Nd2 {[%clk 0:02:11.1]} 24. Rbc1 {[%clk 0:00:51.8]} 24... Nxf1 {[%clk 0:02:11.3]}
25. Rc6 {[%clk 0:00:51]} 25... Qe7 {[%clk 0:01:49.8]} 26. Qxg4 {[%clk
0:00:47.9]} 26... f5 {[%clk 0:01:40.8]} 27. Qh5 {[%clk 0:00:36.8]} 27... g6
{[%clk 0:01:31.5]} 28. Rxg6+ {[%clk 0:00:32.9]} 28... hxg6 {[%clk 0:01:26.5]}
29. Qxg6+ {[%clk 0:00:33.4]} 29... Kf8 {[%clk 0:01:26.7]} 30. Qh6+ {[%clk
0:00:18.3]} 30... Kf7 {[%clk 0:01:06.1]} 31. Qg7+ {[%clk 0:00:18.3]} 31... Ke6
{[%clk 0:01:06.6]} 32. Qe5+ {[%clk 0:00:18.1]} 32... Kd7 {[%clk 0:01:07.2]} 33.
Qxd5+ {[%clk 0:00:16.8]} 33... Qd6 {[%clk 0:01:04]} 34. Bxf5+ {[%clk 0:00:17.2]}
34... Kc7 {[%clk 0:01:03.5]} 35. Qf7+ {[%clk 0:00:12.6]} 35... Re7 {[%clk
0:01:02.4]} 36. Qc4+ {[%clk 0:00:09]} 36... Kb7 {[%clk 0:01:01.9]} 37. Bg4
{[%clk 0:00:02.5]} 37... Nd2 {[%clk 0:01:01.8]} 38. Bf3+ {[%clk 0:00:03.2]}
38... Nxf3 {[%clk 0:01:02.6]} 39. gxf3 {[%clk 0:00:03.7]} 39... Rh7+ {[%clk
0:01:02.4]} 40. Kg1 {[%clk 0:00:04.8]} 40... Qg6+ {[%clk 0:01:02.1]} 41. Kf1
{[%clk 0:00:06.2]} 41... Qd6 {[%clk 0:00:44.9]} 42. Ke2 {[%clk 0:00:06.1]} 42...
Rc8 {[%clk 0:00:44.9]} 43. Qb3 {[%clk 0:00:04.1]} 43... Rd7 {[%clk 0:00:41.7]}
44. Qd3 {[%clk 0:00:04.7]} 44... Qc7 {[%clk 0:00:39.7]} 45. Qe4+ {[%clk
0:00:04.9]} 45... Kb8 {[%clk 0:00:34.1]} 46. Be5 {[%clk 0:00:06]} 46... Rcd8
{[%clk 0:00:19]} 47. Bxc7+ {[%clk 0:00:06.3]} 47... Rxc7 {[%clk 0:00:20.9]} 48.
Qe5 {[%clk 0:00:06.9]} 48... Rc8 {[%clk 0:00:21.3]} 49. f4 {[%clk 0:00:08]}
49... Kb7 {[%clk 0:00:22.5]} 50. Kf3 {[%clk 0:00:09.2]} 50... Rc4 {[%clk
0:00:22.7]} 51. Qe7+ {[%clk 0:00:09.5]} 51... R8c7 {[%clk 0:00:23.6]} 52. Qe6
{[%clk 0:00:09.6]} 52... Rxa4 {[%clk 0:00:22.6]} 53. Qd5+ {[%clk 0:00:08.9]}
53... Kb8 {[%clk 0:00:23.5]} 54. Qd8+ {[%clk 0:00:09.4]} 54... Kb7 {[%clk
0:00:22.8]} 55. Qd5+ {[%clk 0:00:09.7]} 55... Kb8 {[%clk 0:00:24]} 56. Qd8+
{[%clk 0:00:10.6]} 56... Rc8 {[%clk 0:00:25.3]} 57. Qd6+ {[%clk 0:00:10.8]}
57... Rc7 {[%clk 0:00:26.6]} 58. Qd8+ {[%clk 0:00:11.6]} 1/2-1